bitfinex-derivatives/quotes_BTCF0:USTF0_20250823
["timestamp","ask_amount","ask_price","bid_price","bid_amount"]
[1755914371916,1.01179446,116490.0,116480.0,0.62796878]
[1755914375120,1.01179446,116490.0,116480.0,0.54208778]
[1755914375512,1.01179446,116490.0,116480.0,0.62796878]
[1755914378423,1.01179446,116490.0,116480.0,0.54208778]
[1755914379523,1.01179446,116490.0,116480.0,0.43384939]
[1755914380321,1.01179446,116490.0,116480.0,0.62796878]
[1755914381324,1.01179446,116490.0,116480.0,0.51973039]
[1755914388427,0.4486737,116490.0,116480.0,0.51973039]
[1755914388628,1.01179446,116490.0,116480.0,0.51973039]
[1755914392530,0.4486737,116490.0,116480.0,0.51973039]
[1755914392732,1.01179446,116490.0,116480.0,0.51973039]
[1755914394129,1.82219446,116490.0,116480.0,0.51973039]
[1755914400941,1.2590737,116490.0,116480.0,0.51973039]
[1755914401131,1.82219446,116490.0,116480.0,0.51973039]
[1755914401435,0.002,116490.0,116480.0,0.51973039]
[1755914401634,0.81208,116490.0,116480.0,1.41209077]
[1755914401830,0.74444,116490.0,116480.0,1.41289077]
[1755914402131,0.31708,116490.0,116480.0,1.41289077]
[1755914402340,1.7183842,116510.0,116500.0,0.2238063]
[1755914402537,2.7332342,116510.0,116500.0,0.53701523]
[1755914402731,3.0940342,116510.0,116500.0,0.53701523]
[1755914402937,2.7332342,116510.0,116500.0,0.4288863]
[1755914403335,2.7332342,116510.0,116500.0,0.53697206]
[1755914403537,3.01479458,116510.0,116500.0,0.53697206]
[1755914403736,3.37559458,116510.0,116500.0,0.4288863]
[1755914404129,2.27488038,116510.0,116500.0,1.06853327]
[1755914404439,2.80328,116510.0,116500.0,1.06853327]
[1755914404743,3.08484038,116510.0,116500.0,0.96044668]
[1755914405135,3.14595038,116510.0,116500.0,1.11492636]
[1755914405341,3.14595038,116510.0,116500.0,0.83336598]
[1755914405539,3.08684038,116510.0,116500.0,0.83336598]
[1755914405741,2.44448,116510.0,116500.0,1.22293529]
[1755914406041,2.72604038,116510.0,116500.0,1.06845561]
[1755914406237,2.44448,116510.0,116500.0,1.42925561]
[1755914406441,0.81196,116510.0,116500.0,1.42925561]
[1755914406641,0.64964,116510.0,116500.0,1.4078799]
[1755914406843,0.64964,116510.0,116500.0,1.12631952]
[1755914407136,0.64964,116510.0,116500.0,1.4078799]
[1755914407639,0.64964,116510.0,116500.0,1.41656501]
[1755914407943,0.65164,116510.0,116500.0,1.4078799]
[1755914408236,0.65164,116510.0,116500.0,1.4070799]
[1755914408443,1.01194038,116510.0,116500.0,1.56112008]
[1755914408645,1.01194038,116510.0,116500.0,1.2795597]
[1755914409143,1.01194038,116510.0,116500.0,1.38862528]
[1755914410538,1.21675038,116510.0,116500.0,1.0295597]
[1755914410742,1.21675038,116510.0,116500.0,0.8974471]
[1755914411152,1.21675038,116510.0,116500.0,0.7896863]
[1755914411639,1.27563038,116510.0,116500.0,0.89743599]
[1755914412235,1.36228928,116510.0,116500.0,0.42054599]
[1755914412443,1.36228928,116510.0,116500.0,0.3127963]
[1755914412944,1.72308928,116510.0,116500.0,0.1648463]
[1755914413145,1.72308928,116510.0,116500.0,0.1271663]
[1755914413449,0.4282963,116500.0,116490.0,0.89743919]
[1755914413648,0.70985668,116500.0,116490.0,0.89743919]
[1755914413945,0.70985668,116500.0,116490.0,0.83587919]
[1755914414150,0.70985668,116500.0,116490.0,0.22693]
[1755914414344,0.7412643,116500.0,116490.0,0.3128036]
[1755914414544,0.7412643,116500.0,116490.0,0.2238136]
[1755914414743,0.7422643,116500.0,116490.0,0.07898]
[1755914414947,1.1030643,116500.0,116490.0,0.1648536]
[1755914415438,0.7422643,116500.0,116490.0,0.2538436]
[1755914415649,0.656398,116500.0,116490.0,0.4288936]
[1755914416735,0.28232,116500.0,116490.0,0.4288936]
[1755914416936,0.85274,116500.0,116490.0,0.89744329]
[1755914417141,0.81032,116500.0,116490.0,0.89744329]
[1755914417444,0.81032,116500.0,116490.0,0.7896936]
[1755914419049,0.001,116500.0,116490.0,1.43930219]
[1755914419250,0.80932,116510.0,116500.0,0.0858663]
[1755914419446,0.80932,116510.0,116500.0,1.1026543]
[1755914419647,1.15167,116520.0,116510.0,0.223799]
[1755914419848,0.94686,116520.0,116510.0,0.89744725]
[1755914420450,1.00797,116520.0,116510.0,0.89744725]
[1755914420650,1.15167,116520.0,116510.0,0.89744725]
[1755914421944,1.15367,116520.0,116510.0,0.89744725]
[1755914422338,1.15367,116520.0,116510.0,0.789679]
[1755914424148,1.15567,116520.0,116510.0,0.789679]
[1755914426847,1.15567,116520.0,116510.0,0.89742562]
[1755914428656,0.8917,116520.0,116510.0,0.89742562]
[1755914429458,1.16682,116520.0,116510.0,0.89742562]
[1755914431158,1.16482,116520.0,116510.0,0.89742562]
[1755914431359,1.16482,116520.0,116510.0,0.89842562]
[1755914431663,1.16282,116520.0,116510.0,0.89942562]
[1755914432159,1.16282,116520.0,116510.0,0.89842562]
[1755914432370,1.16282,116520.0,116510.0,0.89942562]
[1755914439662,1.16282,116520.0,116510.0,0.791679]
[1755914439964,1.475788,116520.0,116510.0,0.087859]
[1755914440164,1.5616395,116520.0,116510.0,0.087859]
[1755914441865,1.475788,116520.0,116510.0,0.130069]
[1755914442573,1.475788,116520.0,116510.0,0.167279]
[1755914443364,1.5616396,116520.0,116510.0,0.167279]
[1755914443576,1.5616396,116520.0,116510.0,0.087859]
[1755914444375,1.5616396,116520.0,116510.0,0.19571146]
[1755914444674,1.2486716,116520.0,116510.0,0.19571146]
[1755914444874,1.5616396,116520.0,116510.0,0.19571146]
[1755914445976,1.5616396,116520.0,116510.0,0.087859]
[1755914446370,2.1724396,116520.0,116510.0,0.087859]
[1755914446670,2.1724396,116520.0,116510.0,0.19588935]
[1755914447774,2.1724396,116520.0,116510.0,0.087859]
[1755914448979,1.8594716,116520.0,116510.0,0.087859]
[1755914449175,1.8116396,116520.0,116510.0,0.130069]
[1755914450277,2.1724396,116520.0,116510.0,0.130069]
[1755914451269,1.8116396,116520.0,116510.0,0.130069]
[1755914451474,1.8116396,116520.0,116510.0,0.167279]
[1755914451682,1.8116396,116520.0,116510.0,0.261079]
[1755914451880,2.1724396,116520.0,116510.0,0.261079]
[1755914452078,1.8594716,116520.0,116510.0,0.325859]
[1755914452285,2.1724396,116520.0,116510.0,0.325859]
[1755914452984,2.1724396,116520.0,116510.0,0.36910935]
[1755914453281,2.1724396,116520.0,116510.0,0.23809935]
[1755914453483,2.1724396,116520.0,116510.0,0.19588935]
[1755914454776,2.1724396,116520.0,116510.0,0.087859]
[1755914455682,1.8116396,116520.0,116510.0,0.087859]
[1755914455877,2.1724396,116520.0,116510.0,0.087859]
[1755914456280,2.1724396,116520.0,116510.0,0.130069]
[1755914456783,1.8116396,116520.0,116510.0,0.130069]
[1755914457686,1.4986716,116520.0,116510.0,0.130069]
[1755914457879,1.8116396,116520.0,116510.0,0.167279]
[1755914458885,1.9224396,116520.0,116510.0,0.125069]
[1755914459185,1.9224396,116520.0,116510.0,0.166559]
[1755914459581,1.5616396,116520.0,116510.0,0.166559]
[1755914459780,1.9224396,116520.0,116510.0,0.166559]
[1755914460180,1.9224396,116520.0,116510.0,0.087859]
[1755914460582,1.5616396,116520.0,116510.0,0.087859]
[1755914460779,1.475788,116520.0,116510.0,0.087859]
[1755914460978,1.475788,116520.0,116510.0,0.129349]
[1755914461286,1.475788,116520.0,116510.0,0.365699]
[1755914461483,1.475788,116520.0,116510.0,0.792159]
[1755914462184,1.475788,116520.0,116510.0,0.431359]
[1755914463992,1.16198,116520.0,116510.0,0.681359]
[1755914464475,1.09574,116520.0,116510.0,1.355927]
[1755914464683,0.28316,116530.0,116520.0,0.2232816]
[1755914464884,1.15332,116530.0,116520.0,0.79887369]
[1755914465083,1.15332,116530.0,116520.0,0.90693519]
[1755914465788,1.15332,116530.0,116520.0,1.24275368]
[1755914466292,1.15332,116530.0,116520.0,1.23403159]
[1755914467985,1.0494,116530.0,116520.0,1.09129159]
[1755914468579,1.362368,116530.0,116520.0,1.09129159]
[1755914469390,1.0494,116530.0,116520.0,1.09129159]
[1755914469690,1.362368,116530.0,116520.0,1.09129159]
[1755914469892,1.362368,116530.0,116520.0,1.01882009]
[1755914470083,1.362368,116530.0,116520.0,1.17286027]
[1755914471493,1.324678,116530.0,116520.0,1.13727027]
[1755914471693,1.324678,116530.0,116520.0,1.01882009]
[1755914472785,1.324678,116530.0,116520.0,0.76882009]
[1755914472994,1.324678,116530.0,116520.0,0.876836]
[1755914473888,1.324678,116530.0,116520.0,0.516036]
[1755914477395,1.324678,116530.0,116520.0,0.43021751]
[1755914478399,1.324678,116530.0,116520.0,0.79101751]
[1755914478704,1.324678,116530.0,116520.0,0.43021751]
[1755914479201,1.01171,116530.0,116520.0,0.43021751]
[1755914479699,1.324678,116530.0,116520.0,0.43021751]
[1755914480196,1.324678,116530.0,116520.0,0.79101751]
[1755914480587,1.324678,116530.0,116520.0,0.6830016]
[1755914480792,1.01171,116530.0,116520.0,0.6830016]
[1755914482099,1.01171,116530.0,116520.0,0.83704178]
[1755914484696,1.324678,116530.0,116520.0,0.83704178]
[1755914486904,1.324678,116530.0,116520.0,0.6830016]
[1755914487505,1.01171,116530.0,116520.0,0.6830016]
[1755914487701,1.324678,116530.0,116520.0,0.6830016]
[1755914489607,1.01171,116530.0,116520.0,0.6830016]
[1755914489904,1.324678,116530.0,116520.0,0.6830016]
[1755914491106,1.324678,116530.0,116520.0,0.3222016]
[1755914493407,1.324678,116530.0,116520.0,0.6830016]
[1755914494407,1.324678,116530.0,116520.0,0.3222016]
[1755914494910,1.324678,116530.0,116520.0,0.83704178]
[1755914495207,1.324678,116530.0,116520.0,0.47624178]
[1755914495604,1.324678,116530.0,116520.0,0.83704178]
[1755914496820,1.16237985,116530.0,116520.0,0.83704178]
[1755914497319,1.16237985,116530.0,116520.0,1.15080978]
[1755914497320,0.12992,116530.0,116520.0,1.15080978]
[1755914497510,0.00839054,116550.0,116530.0,0.3236842]
[1755914497511,0.05172,116540.0,116530.0,0.3236842]
[1755914497715,0.08582,116540.0,116530.0,0.6844842]
[1755914498316,0.08582,116540.0,116530.0,1.17434287]
[1755914499017,0.08682,116540.0,116530.0,1.02030269]
[1755914499523,0.08682,116540.0,116530.0,1.17465823]
[1755914500210,0.0351,116540.0,116530.0,1.17465823]
[1755914500415,0.0361,116540.0,116530.0,1.17465823]
[1755914500717,0.0351,116540.0,116530.0,1.17465823]
[1755914500918,0.0351,116540.0,116530.0,1.17565823]
[1755914501421,0.0351,116540.0,116530.0,1.17465823]
[1755914501619,0.0351,116540.0,116530.0,1.17565823]
[1755914501820,0.0341,116540.0,116530.0,1.17665823]
[1755914503619,0.00012893,116550.0,116540.0,0.3236773]
[1755914503826,0.0341,116560.0,116550.0,0.3236699]
[1755914504122,0.0341,116560.0,116550.0,0.6844699]
[1755914504324,0.0341,116560.0,116550.0,0.92463656]
[1755914505316,0.0351,116560.0,116550.0,0.93341575]
[1755914505525,0.0351,116560.0,116550.0,1.04501163]
[1755914505720,0.00456752,116560.0,116550.0,1.04501163]
[1755914507025,0.00556752,116560.0,116550.0,1.11364482]
[1755914507323,0.002,116560.0,116550.0,1.93560482]
[1755914508028,0.002,116560.0,116550.0,2.18560482]
[1755914508221,0.002,116560.0,116550.0,2.34421728]
[1755914509330,0.08782,116560.0,116550.0,0.95928928]
[1755914509627,0.12839,116560.0,116550.0,1.10436457]
[1755914509823,1.537348,116560.0,116550.0,0.73967294]
[1755914510021,1.537348,116560.0,116550.0,0.65386182]
[1755914510223,1.537348,116560.0,116550.0,0.54615757]
[1755914510422,1.537348,116560.0,116550.0,0.39230309]
[1755914511821,1.537348,116560.0,116550.0,0.49999478]
[1755914513126,1.6231709,116560.0,116550.0,0.4282136]
[1755914513328,1.537348,116560.0,116550.0,0.35129478]
[1755914513527,1.6231709,116560.0,116550.0,0.35129478]
[1755914513723,1.9847709,116560.0,116550.0,0.17632488]
[1755914513928,1.9847709,116560.0,116550.0,0.14555766]
[1755914514629,1.9847709,116560.0,116550.0,0.23138786]
[1755914518934,1.7347709,116560.0,116550.0,0.23138786]
[1755914520136,1.7339709,116560.0,116550.0,0.14555766]
[1755914520339,1.9847709,116560.0,116550.0,0.06863319]
[1755914520529,0.1605303,116550.0,116540.0,0.17510153]
[1755914520831,0.8913783,116550.0,116540.0,0.08596153]
[1755914521037,0.8913783,116550.0,116540.0,0.16293284]
[1755914521335,0.0858376,116540.0,116530.0,0.28339359]
[1755914521537,1.5781256,116540.0,116530.0,0.19353359]
[1755914522138,1.5781256,116540.0,116530.0,0.0858419]
[1755914522429,1.5781256,116540.0,116530.0,0.1757019]
[1755914523634,1.5781256,116540.0,116530.0,0.24728081]
[1755914524631,1.2651576,116540.0,116530.0,0.24728081]
[1755914524941,1.5781256,116540.0,116530.0,0.24728081]
[1755914525128,1.2651576,116540.0,116530.0,0.28286081]
[1755914525325,1.5781256,116540.0,116530.0,0.28286081]
[1755914528534,0.3608,116550.0,116540.0,0.3192577]
[1755914528734,1.491288,116550.0,116540.0,0.3200577]
[1755914530932,1.491288,116550.0,116540.0,0.42774939]
[1755914531533,1.130488,116550.0,116540.0,0.78854939]
[1755914531834,1.130488,116550.0,116540.0,0.42774939]
[1755914534640,1.130488,116550.0,116540.0,0.42694939]
[1755914534835,1.5771184,116550.0,116540.0,0.42694939]
[1755914535040,1.5771184,116550.0,116540.0,0.34111169]
[1755914535637,1.5771184,116550.0,116540.0,0.29068169]
[1755914535833,1.5771184,116550.0,116540.0,0.19755169]
[1755914536834,1.5771184,116550.0,116540.0,0.36037006]
[1755914537130,1.5771184,116550.0,116540.0,0.28825837]
[1755914538439,1.5771184,116550.0,116540.0,0.2112779]
[1755914540139,1.5771184,116550.0,116540.0,0.31896959]
[1755914541042,1.2641504,116550.0,116540.0,0.31896959]
[1755914541245,1.128248,116550.0,116540.0,0.42694959]
[1755914541943,1.489048,116550.0,116540.0,0.42694959]
[1755914542645,1.489048,116550.0,116540.0,0.3192579]
[1755914543041,1.128248,116550.0,116540.0,0.3192579]
[1755914543846,1.2140785,116550.0,116540.0,0.3192579]
[1755914544049,1.5748785,116550.0,116540.0,0.3192579]
[1755914545341,1.5748785,116550.0,116540.0,0.2688279]
[1755914546441,1.5748785,116550.0,116540.0,0.3192579]
[1755914547150,1.5748785,116550.0,116540.0,0.4272735]
[1755914551953,1.5748785,116550.0,116540.0,0.42730014]
[1755914554064,1.124888,116550.0,116540.0,0.42730014]
[1755914554250,1.485688,116550.0,116540.0,0.42730014]
[1755914554446,1.124888,116550.0,116540.0,0.42730014]
[1755914555853,1.124888,116550.0,116540.0,0.3192579]
[1755914556953,1.124888,116550.0,116540.0,0.42734009]
[1755914557155,1.2107186,116550.0,116540.0,0.42734009]
[1755914557356,1.124888,116550.0,116540.0,0.42734009]
[1755914557755,1.124888,116550.0,116540.0,0.3192579]
[1755914559548,1.485688,116550.0,116540.0,0.3192579]
[1755914559850,1.124888,116550.0,116540.0,0.42737915]
[1755914560555,1.124888,116550.0,116540.0,0.3192579]
[1755914560957,1.485688,116550.0,116540.0,0.3192579]
[1755914561152,0.81192,116550.0,116540.0,0.3192579]
[1755914561358,1.124888,116550.0,116540.0,0.47311238]
[1755914562158,0.312968,116550.0,116540.0,0.83391238]
[1755914562457,0.81268,116550.0,116540.0,1.08391238]
[1755914562655,0.932068,116560.0,116550.0,0.3107807]
[1755914562848,1.744548,116560.0,116550.0,0.3107807]
[1755914564259,1.745548,116560.0,116550.0,0.3107807]
[1755914564948,1.746548,116560.0,116550.0,0.3107807]
[1755914565153,0.934068,116560.0,116550.0,0.3107807]
[1755914565352,1.745868,116560.0,116550.0,0.3107807]
[1755914566659,1.385068,116560.0,116550.0,0.3107807]
[1755914566862,1.385068,116560.0,116550.0,0.41887034]
[1755914567158,1.745868,116560.0,116550.0,0.41887034]
[1755914567962,1.385068,116560.0,116550.0,0.41887034]
[1755914568462,1.385068,116560.0,116550.0,0.3107807]
[1755914568770,0.573268,116560.0,116550.0,0.3107807]
[1755914568953,1.384548,116560.0,116550.0,0.3107807]
[1755914569262,1.745348,116560.0,116550.0,0.3107807]
[1755914570360,1.384548,116560.0,116550.0,0.41884804]
[1755914572162,1.745348,116560.0,116550.0,0.41884804]
[1755914573054,1.43238,116560.0,116550.0,0.41884804]
[1755914573255,1.745348,116560.0,116550.0,0.41884804]
[1755914574662,1.8311713,116560.0,116550.0,0.41884804]
[1755914575158,1.4703713,116560.0,116550.0,0.41884804]
[1755914575366,1.8311713,116560.0,116550.0,0.41884804]
[1755914576161,1.4703713,116560.0,116550.0,0.41884804]
[1755914577760,1.8311713,116560.0,116550.0,0.41884804]
[1755914581459,1.5728713,116560.0,116550.0,0.3107807]
[1755914581859,1.5728713,116560.0,116550.0,0.41885799]
[1755914584369,1.82266756,116560.0,116550.0,0.41885799]
[1755914585470,1.54128543,116560.0,116550.0,0.41885799]
[1755914586369,1.57251761,116560.0,116550.0,0.41885799]
[1755914588562,1.21171761,116560.0,116550.0,0.41885799]
[1755914588764,1.57251761,116560.0,116550.0,0.41885799]
[1755914588965,1.21171761,116560.0,116550.0,0.41885799]
[1755914590072,1.57251761,116560.0,116550.0,0.41885799]
[1755914590272,1.21171761,116560.0,116550.0,0.41885799]
[1755914590474,1.57251761,116560.0,116550.0,0.41885799]
[1755914590770,1.21171761,116560.0,116550.0,0.41885799]
[1755914590974,1.57251761,116560.0,116550.0,0.41885799]
[1755914591166,1.57251761,116560.0,116550.0,0.3107807]
[1755914591569,1.21171761,116560.0,116550.0,0.41894762]
[1755914592972,1.57251761,116560.0,116550.0,0.41894762]
[1755914594076,1.21171761,116560.0,116550.0,0.41894762]
[1755914594374,1.57251761,116560.0,116550.0,0.41894762]
[1755914594875,1.57251761,116560.0,116550.0,0.19142692]
[1755914595974,1.57251761,116560.0,116550.0,0.08326]
[1755914596176,1.57251761,116560.0,116540.0,0.1388979]
[1755914596177,0.0858307,116550.0,116540.0,0.36450238]
[1755914596380,0.75924501,116550.0,116540.0,0.32884238]
[1755914596869,0.75924501,116550.0,116540.0,0.1749879]
[1755914597065,0.75924501,116550.0,116540.0,0.08915]
[1755914597275,0.75924501,116550.0,116540.0,0.19731712]
[1755914597475,0.75924501,116550.0,116540.0,0.10816712]
[1755914599070,1.07185932,116550.0,116540.0,0.10816712]
[1755914600574,0.085838,116540.0,116530.0,0.26689603]
[1755914600779,1.56797231,116540.0,116530.0,0.26689603]
[1755914600978,1.56797231,116540.0,116530.0,0.15872891]
[1755914601881,1.56797231,116540.0,116530.0,0.23691501]
[1755914603081,1.56797231,116540.0,116530.0,0.23791501]
[1755914603280,1.56797231,116540.0,116530.0,0.27357501]
[1755914603778,1.56797231,116540.0,116530.0,0.19638891]
[1755914604870,1.56797231,116540.0,116530.0,0.30617891]
[1755914606185,1.56797231,116540.0,116530.0,0.25311891]
[1755914606879,1.255358,116540.0,116530.0,0.36128603]
[1755914607082,1.56797231,116540.0,116530.0,0.41434603]
[1755914610587,1.56797231,116540.0,116530.0,0.50019153]
[1755914612483,1.56797231,116540.0,116530.0,0.41434603]
[1755914613586,1.56797231,116540.0,116530.0,0.36128603]
[1755914615489,1.56797231,116540.0,116530.0,0.44713133]
[1755914615788,1.56797231,116540.0,116530.0,0.49502133]
[1755914616385,1.5368603,116540.0,116530.0,0.49502133]
[1755914616683,1.5368603,116540.0,116530.0,0.38685421]
[1755914618292,1.5368603,116540.0,116530.0,0.30100891]
[1755914618486,1.5368603,116540.0,116530.0,0.16072891]
[1755914618884,1.8183626,116540.0,116530.0,0.16072891]
[1755914619085,2.0683626,116540.0,116530.0,0.14864764]
[1755914620197,2.3266626,116540.0,116530.0,0.14864764]
[1755914620398,2.07652534,116540.0,116530.0,0.14864764]
[1755914626204,2.07652534,116540.0,116530.0,0.07157891]
[1755914626502,2.07652534,116540.0,116530.0,0.15964891]
[1755914630391,2.09529917,116540.0,116530.0,0.15964891]
[1755914632802,2.09539936,116540.0,116530.0,0.15964891]
[1755914639004,1.84539936,116540.0,116530.0,0.15964891]
[1755914640310,2.09565388,116540.0,116530.0,0.07157891]
[1755914641010,2.09565388,116540.0,116530.0,0.15086891]
[1755914641210,2.09565388,116540.0,116530.0,0.22793764]
[1755914642507,0.2063152,116530.0,116520.0,0.10816712]
[1755914642710,0.1380926,116520.0,116510.0,0.14004]
[1755914642911,1.93884446,116520.0,116510.0,0.14004]
[1755914644611,1.93884446,116520.0,116510.0,0.21933]
[1755914644802,1.93684446,116520.0,116510.0,0.22233]
[1755914645410,1.94523807,116520.0,116510.0,0.22233]
[1755914645610,1.94523807,116520.0,116510.0,0.22533]
[1755914646110,1.94523807,116520.0,116510.0,0.29342354]
[1755914646603,1.94523807,116520.0,116510.0,0.37928354]
[1755914647217,1.38211621,116520.0,116510.0,0.37928354]
[1755914647510,1.94523807,116520.0,116510.0,0.37928354]
[1755914651113,1.94523807,116520.0,116510.0,0.43751354]
[1755914656815,1.94523807,116520.0,116510.0,0.35165354]
[1755914657013,1.94523807,116520.0,116510.0,0.45982627]
[1755914660214,1.94523807,116520.0,116510.0,0.62295328]
[1755914660612,1.94523807,116520.0,116510.0,0.51478055]
[1755914661513,1.94523807,116520.0,116510.0,0.42892055]
[1755914662119,1.94523807,116520.0,116510.0,0.51478055]
[1755914664822,1.94523807,116520.0,116510.0,0.43751354]
[1755914665022,1.94523807,116520.0,116510.0,0.54568627]
[1755914665524,1.94523807,116520.0,116510.0,0.54569483]
[1755914665916,1.38211621,116520.0,116510.0,0.54569483]
[1755914666120,1.94523807,116520.0,116510.0,0.54569483]
[1755914667423,1.94523807,116520.0,116510.0,0.43751354]
[1755914668818,1.94523807,116520.0,116510.0,0.54570568]
[1755914669317,1.94523807,116520.0,116510.0,0.54570578]
[1755914670114,1.94523807,116520.0,116510.0,0.43751354]
[1755914670510,1.94523807,116520.0,116510.0,0.54571074]
[1755914671620,2.226799,116520.0,116510.0,0.24052074]
[1755914672621,2.476799,116520.0,116510.0,0.24052074]
[1755914673324,2.476799,116520.0,116510.0,0.13232354]
[1755914673626,0.1408596,116510.0,116500.0,0.1894772]
[1755914673816,1.13233146,116510.0,116500.0,0.1894772]
[1755914674131,1.13233146,116510.0,116500.0,0.1081972]
[1755914674326,1.40977322,116510.0,116500.0,0.1081972]
[1755914674726,1.41077322,116510.0,116500.0,0.1111972]
[1755914674927,1.41077322,116510.0,116500.0,0.18053295]
[1755914675228,1.41077322,116510.0,116500.0,0.18353295]
[1755914675424,1.40977322,116510.0,116500.0,0.18053295]
[1755914675726,1.40977322,116510.0,116500.0,0.07233575]
[1755914676321,1.41077322,116510.0,116500.0,0.1465212]
[1755914676720,1.41077322,116510.0,116500.0,0.2278012]
[1755914679028,1.15247322,116510.0,116500.0,0.2278012]
[1755914683734,1.15247322,116510.0,116500.0,0.07718545]
[1755914683933,0.0858669,116500.0,116490.0,0.2693272]
[1755914684236,1.94033876,116500.0,116490.0,0.3238772]
[1755914684738,1.94033876,116500.0,116490.0,0.39212669]
[1755914687727,1.94233876,116500.0,116490.0,0.39212669]
[1755914695139,1.94233876,116500.0,116490.0,0.18182949]
[1755914698557,1.94233876,116500.0,116490.0,0.23055949]
[1755914698746,1.94233876,116500.0,116490.0,0.28510949]
[1755914699652,2.20063876,116500.0,116490.0,0.28510949]
[1755914701052,2.20063876,116500.0,116490.0,0.23637949]
[1755914701552,2.20063876,116500.0,116490.0,0.34457669]
[1755914701753,3.83303876,116500.0,116490.0,0.34457669]
[1755914701949,3.83303876,116500.0,116490.0,0.39330669]
[1755914708354,3.83303876,116500.0,116490.0,0.17644669]
[1755914708850,3.83303876,116500.0,116490.0,0.1081972]
[1755914709154,0.2076041,116490.0,116480.0,0.1138]
[1755914709354,1.38982596,116490.0,116480.0,0.1138]
[1755914711054,1.38982596,116490.0,116480.0,0.16253]
[1755914711253,1.38982596,116490.0,116480.0,0.21685]
[1755914712160,1.38982596,116490.0,116480.0,0.3428815]
[1755914713058,1.38982596,116490.0,116480.0,0.41302616]
[1755914716260,1.38982596,116490.0,116480.0,0.32714466]
[1755914716261,1.4087005,116490.0,116480.0,0.32714466]
[1755914716460,1.4087005,116490.0,116480.0,0.41302616]
[1755914716953,1.4087005,116490.0,116480.0,0.52119539]
[1755914720964,1.4087005,116490.0,116480.0,0.41302616]
[1755914724966,1.4087005,116490.0,116480.0,0.32714466]
[1755914725355,1.4087005,116490.0,116480.0,0.41302616]
[1755914725966,1.4087005,116490.0,116480.0,0.32714466]
[1755914729870,1.4087005,116490.0,116480.0,0.27841466]
[1755914730874,1.4087005,116490.0,116480.0,0.38661308]
[1755914731172,1.4087005,116490.0,116480.0,0.33329308]
[1755914734071,1.69026143,116490.0,116480.0,0.33329308]
[1755914734377,1.69026143,116490.0,116480.0,0.18191203]
[1755914734564,0.0858815,116480.0,116470.0,0.18964842]
[1755914734875,1.95328336,116480.0,116470.0,0.13888842]
[1755914735372,2.21158336,116480.0,116470.0,0.13888842]
[1755914735672,2.21158336,116480.0,116470.0,0.03069]
[1755914736277,2.21158336,116480.0,116470.0,0.03169]
[1755914736576,2.21158336,116480.0,116470.0,0.09995808]
[1755914737170,2.21158336,116480.0,116470.0,0.10095808]
[1755914741174,2.21158336,116480.0,116470.0,0.07026808]
[1755914743369,2.21158336,116480.0,116470.0,0.002]
[1755914743583,1.95328336,116480.0,116470.0,0.002]
[1755914745882,1.95328336,116480.0,116470.0,0.03269]
[1755914754484,3.58604336,116480.0,116470.0,0.03269]
[1755914756787,3.60502991,116480.0,116470.0,0.03269]
[1755914760385,3.60548518,116480.0,116470.0,0.088]
[1755914760581,3.60548518,116480.0,116470.0,0.3035088]
[1755914760582,3.32316425,116480.0,116470.0,0.3035088]
[1755914761087,3.32316425,116480.0,116470.0,0.31646416]
[1755914761383,3.30372243,116480.0,116470.0,0.31646416]
[1755914763378,3.30372243,116480.0,116470.0,0.31647094]
[1755914768995,3.30372243,116480.0,116470.0,0.42466936]
[1755914769398,3.30372243,116480.0,116470.0,0.41170722]
[1755914769596,3.30372243,116480.0,116470.0,0.42467531]
[1755914770097,3.30372243,116480.0,116470.0,0.4246753]
[1755914770294,3.58528336,116480.0,116470.0,0.42467524]
[1755914771100,3.58528336,116480.0,116470.0,0.41170722]
[1755914772199,3.58528336,116480.0,116470.0,0.42442129]
[1755914773200,3.64105336,116480.0,116470.0,0.46214129]
[1755914773594,3.64061336,116480.0,116470.0,0.46214129]
[1755914775600,3.35905243,116480.0,116470.0,0.51956129]
[1755914776600,3.64061336,116480.0,116470.0,0.51956129]
[1755914778302,3.0774915,116480.0,116470.0,0.51956129]
[1755914778491,0.87437093,116480.0,116470.0,0.76956129]
[1755914778699,1.67969093,116480.0,116470.0,0.76956063]
[1755914778905,1.67969093,116480.0,116470.0,0.66136221]
[1755914779205,1.67969093,116480.0,116470.0,0.6486488]
[1755914780200,0.37675093,116480.0,116470.0,1.0102488]
[1755914780394,0.09519,116480.0,116470.0,1.29180973]
[1755914780595,0.89542172,116490.0,116480.0,0.3958316]
[1755914780796,1.70066172,116490.0,116480.0,0.3958316]
[1755914780999,1.33986172,116490.0,116480.0,0.3958316]
[1755914781705,1.62142265,116490.0,116480.0,0.3958316]
[1755914782804,1.62138265,116490.0,116480.0,0.3958316]
[1755914782998,1.62134265,116490.0,116480.0,0.3958316]
[1755914783604,0.81618265,116490.0,116480.0,0.3958316]
[1755914783806,0.81618265,116490.0,116480.0,0.6458316]
[1755914784003,0.37597093,116490.0,116480.0,1.11466972]
[1755914784304,0.17806,116500.0,116490.0,0.3958242]
[1755914784506,1.03887,116500.0,116490.0,0.50382402]
[1755914785405,1.32243093,116500.0,116490.0,0.50382402]
[1755914786105,1.68985866,116500.0,116490.0,0.50382402]
[1755914786613,1.68985866,116500.0,116490.0,0.40942402]
[1755914787301,1.68985866,116500.0,116490.0,0.44640402]
[1755914787502,1.40829773,116500.0,116490.0,0.44640402]
[1755914787702,1.40829773,116500.0,116490.0,0.49915402]
[1755914788512,1.40829773,116500.0,116490.0,0.3911542]
[1755914790512,0.60325773,116500.0,116490.0,0.3911542]
[1755914790809,1.32219093,116500.0,116490.0,0.3911542]
[1755914792011,0.51739093,116500.0,116490.0,0.3911542]
[1755914792214,1.32207093,116500.0,116490.0,0.3911542]
[1755914793113,0.51739093,116500.0,116490.0,0.3911542]
[1755914793313,1.32207093,116500.0,116490.0,0.3911542]
[1755914793616,1.40793773,116500.0,116490.0,0.3911542]
[1755914793913,1.68949866,116500.0,116490.0,0.3911542]
[1755914794115,1.60363186,116500.0,116490.0,0.3911542]
[1755914794415,1.68949866,116500.0,116490.0,0.3911542]
[1755914798111,1.1263768,116500.0,116490.0,0.3911542]
[1755914798416,1.40793773,116500.0,116490.0,0.3911542]
[1755914799117,1.76873773,116500.0,116490.0,0.3911542]
[1755914800818,1.4871768,116500.0,116490.0,0.46823871]
[1755914801019,2.05029866,116500.0,116490.0,0.46823871]
[1755914801516,1.40131,116500.0,116490.0,0.92271513]
[1755914801811,1.32092093,116500.0,116490.0,1.28351513]
[1755914802018,1.32092093,116500.0,116490.0,1.0019542]
[1755914802823,1.03936,116500.0,116490.0,1.0019542]
[1755914803013,0.95571,116500.0,116490.0,1.0019542]
[1755914803320,1.18225093,116500.0,116490.0,1.5240102]
[1755914804023,1.18225093,116500.0,116490.0,1.24244927]